bitfinex-derivatives/quotes_BTCF0:USTF0_20250919
["timestamp","ask_amount","ask_price","bid_price","bid_amount"]
[1758271672919,2.23580457,117010.0,117000.0,0.463217]
[1758271673116,3.00824457,117010.0,117000.0,0.463217]
[1758271681038,2.23580457,117010.0,117000.0,0.463217]
[1758271681238,3.00820457,117010.0,117000.0,0.463217]
[1758271682440,3.00820457,117010.0,117000.0,0.102417]
[1758271683935,3.00820457,117010.0,117000.0,0.089257]
[1758271684135,3.01721457,117010.0,117000.0,0.089257]
[1758271687349,3.00820457,117010.0,117000.0,0.103147]
[1758271688346,3.01721457,117010.0,117000.0,0.089257]
[1758271691751,3.01711798,117010.0,117000.0,0.089257]
[1758271693054,3.01711798,117010.0,117000.0,0.47988936]
[1758271696754,3.01711798,117010.0,117000.0,0.089257]
[1758271696954,1.21639798,117010.0,117000.0,0.47988936]
[1758271701252,1.21639798,117010.0,117000.0,0.84068936]
[1758271701758,1.20738798,117010.0,117000.0,0.85457936]
[1758271703762,0.43498798,117010.0,117000.0,0.85457936]
[1758271704062,1.20734798,117010.0,117000.0,0.85457936]
[1758271704562,1.20734798,117010.0,117000.0,0.463947]
[1758271704763,1.20734798,117010.0,117000.0,0.85457936]
[1758271705357,0.43498798,117010.0,117000.0,0.85457936]
[1758271705557,1.20734798,117010.0,117000.0,0.85457936]
[1758271706062,0.43498798,117010.0,117000.0,0.85457936]
[1758271706254,1.20734798,117010.0,117000.0,0.85457936]
[1758271709663,0.43498798,117010.0,117000.0,0.85457936]
[1758271709964,1.20734798,117010.0,117000.0,0.85457936]
[1758271710967,1.20734798,117010.0,117000.0,0.463947]
[1758271711168,1.20734798,117010.0,117000.0,0.85457936]
[1758271712863,1.20734798,117010.0,117000.0,0.463947]
[1758271713070,1.20734798,117010.0,117000.0,0.85457936]
[1758271713468,1.20734798,117010.0,117000.0,0.463947]
[1758271714271,1.20734798,117010.0,117000.0,0.85457936]
[1758271715370,1.20734798,117010.0,117000.0,0.463947]
[1758271715572,1.20734798,117010.0,117000.0,0.85457936]
[1758271716171,0.81671562,117010.0,117000.0,0.85457936]
[1758271716374,1.20734798,117010.0,117000.0,0.85457936]
[1758271719573,1.20734798,117010.0,117000.0,0.463947]
[1758271719773,1.20734798,117010.0,117000.0,0.85457936]
[1758271726582,1.20734798,117010.0,117000.0,0.49377936]
[1758271726776,1.20734798,117010.0,117000.0,0.85457936]
[1758271727578,1.20734798,117010.0,117000.0,0.49377936]
[1758271727883,1.20734798,117010.0,117000.0,0.85457936]
[1758271728986,1.20734798,117010.0,117000.0,0.463947]
[1758271729187,1.20734798,117010.0,117000.0,0.85457936]
[1758271730781,1.21635798,117010.0,117000.0,0.450057]
[1758271730986,1.21635798,117010.0,117000.0,0.81953936]
[1758271731780,1.21635798,117010.0,117000.0,0.428907]
[1758271732989,1.21635798,117010.0,117000.0,0.451317]
[1758271736091,0.82572562,117010.0,117000.0,0.451317]
[1758271736283,1.21635798,117010.0,117000.0,0.451317]
[1758271738896,1.21635798,117010.0,117000.0,0.465037]
[1758271741499,1.20734798,117010.0,117000.0,0.465037]
[1758271741698,1.20734798,117010.0,117000.0,0.85566936]
[1758271741892,0.43498798,117010.0,117000.0,0.85566936]
[1758271742097,1.20730798,117010.0,117000.0,0.85566936]
[1758271742299,1.20730798,117010.0,117000.0,0.465037]
[1758271742598,1.20730798,117010.0,117000.0,0.85566936]
[1758271743204,1.20713896,117010.0,117000.0,0.85566936]
[1758271745497,1.20713896,117010.0,117000.0,0.49486936]
[1758271745801,1.20713896,117010.0,117000.0,0.85566936]
[1758271746506,1.20713896,117010.0,117000.0,0.49486936]
[1758271746707,1.20713896,117010.0,117000.0,0.85566936]
[1758271752606,1.20713896,117010.0,117000.0,0.465037]
[1758271752907,1.20713896,117010.0,117000.0,0.85566936]
[1758271754007,1.20711142,117010.0,117000.0,0.465037]
[1758271759111,1.20711142,117010.0,117000.0,0.485037]
[1758271762912,1.20611142,117010.0,117000.0,0.485037]
[1758271763113,1.20611142,117010.0,117000.0,0.486037]
[1758271763810,1.20211142,117010.0,117000.0,0.485037]
[1758271764013,1.20211142,117010.0,117000.0,0.487037]
[1758271765816,1.21112142,117010.0,117000.0,0.467037]
[1758271766011,1.21112142,117010.0,117000.0,0.453317]
[1758271766218,1.57192142,117010.0,117000.0,0.070107]
[1758271766716,1.57192142,117010.0,117000.0,0.092987]
[1758271767108,1.57192142,117010.0,117000.0,0.070107]
[1758271767315,1.57192142,117010.0,117000.0,0.092987]
[1758271768615,1.82192142,117010.0,117000.0,0.0021]
[1758271770022,1.82184142,117010.0,117000.0,0.0021]
[1758271779331,1.57184142,117010.0,117000.0,0.0021]
[1758271784038,0.79960142,117010.0,117000.0,0.0021]
[1758271784235,1.57184142,117010.0,117000.0,0.0021]
[1758271785736,3.37240142,117010.0,117000.0,0.0021]
[1758271788548,2.60016142,117010.0,117000.0,0.0021]
[1758271788843,3.37236142,117010.0,117000.0,0.0021]
[1758271792444,3.01156142,117010.0,117000.0,0.0021]
[1758271792642,3.37236142,117010.0,117000.0,0.0021]
[1758271802853,3.37232142,117010.0,117000.0,0.0021]
[1758271810155,2.60016142,117010.0,117000.0,0.0021]
[1758271810353,3.37232142,117010.0,117000.0,0.0021]
[1758271812856,2.2095566,117010.0,117000.0,0.0021]
[1758271813056,3.37228142,117010.0,117000.0,0.0221]
[1758271813257,3.37228142,117010.0,117000.0,0.04398]
[1758271813457,3.37228142,117010.0,117000.0,0.0221]
[1758271813750,3.37232802,117010.0,117000.0,0.0221]
[1758271814855,2.60020802,117010.0,117000.0,0.0221]
[1758271815055,3.37232802,117010.0,117000.0,0.0221]
[1758271818859,3.37232802,117010.0,117000.0,0.0021]
[1758271821461,3.76297944,117010.0,117000.0,0.0021]
[1758271822271,3.37232802,117010.0,117000.0,0.0021]
[1758271824073,3.76297944,117010.0,117000.0,0.0021]
[1758271825374,3.37232802,117010.0,117000.0,0.0021]
[1758271830183,2.60020802,117010.0,117000.0,0.02438]
[1758271830484,3.37228802,117010.0,117000.0,0.02438]
[1758271830982,3.76293944,117010.0,117000.0,0.0021]
[1758271847295,2.99085944,117010.0,117000.0,0.0021]
[1758271847488,3.76293944,117010.0,117000.0,0.0021]
[1758271850094,2.99085944,117010.0,117000.0,0.0021]
[1758271850294,3.76293944,117010.0,117000.0,0.0021]
[1758271851695,2.99085944,117010.0,117000.0,0.0021]
[1758271851897,3.76293944,117010.0,117000.0,0.0021]
[1758271852999,3.76293944,117010.0,117000.0,0.02438]
[1758271854097,2.99085944,117010.0,117000.0,0.02438]
[1758271854297,3.76293944,117010.0,117000.0,0.02438]
[1758271860999,3.40213944,117010.0,117000.0,0.02438]
[1758271862601,3.40213944,117010.0,117000.0,0.0021]
[1758271865496,3.38495284,117010.0,117000.0,0.0021]
[1758271865702,3.40242634,117010.0,117000.0,0.0021]
[1758271868001,3.40242634,117010.0,117000.0,0.02449]
[1758271873107,3.40242634,117010.0,117000.0,0.0021]
[1758271873704,3.40242634,117010.0,117000.0,0.02449]
[1758271875107,1.8400335,117010.0,117000.0,0.67870142]
[1758271875305,3.00272492,117010.0,117000.0,0.67870142]
[1758271875503,2.23068492,117010.0,117000.0,1.03950142]
[1758271875705,2.6120735,117010.0,117000.0,1.83015284]
[1758271876005,2.6120735,117010.0,117000.0,1.43938329]
[1758271876602,2.6120735,117010.0,117000.0,1.03938329]
[1758271878211,2.6120735,117010.0,117000.0,1.1078755]
[1758271878609,1.8400335,117010.0,117000.0,1.1078755]
[1758271878805,1.8180335,117010.0,117000.0,1.623302]
[1758271879013,2.5900735,117010.0,117000.0,2.01383529]
[1758271880007,2.5726,117010.0,117000.0,2.01383529]
[1758271880206,2.5726,117010.0,117000.0,2.34383529]
[1758271890515,1.80056,117010.0,117000.0,2.34383529]
[1758271890815,2.57244,117010.0,117000.0,2.34383529]
[1758271891910,0.0001,117020.0,117010.0,0.1220295]
[1758271892114,0.02234,117030.0,117020.0,0.1220222]
[1758271892311,0.70896,117030.0,117020.0,1.41345549]
[1758271892917,0.70896,117030.0,117020.0,1.42186997]
[1758271895511,0.71796,117030.0,117020.0,1.42186997]
[1758271895817,0.71796,117030.0,117020.0,1.42386997]
[1758271896012,0.70896,117030.0,117020.0,1.42386997]
[1758271900816,0.70896,117030.0,117020.0,1.33004329]
[1758271901020,1.11347329,117030.0,117020.0,1.33004329]
[1758271904724,0.72294,117030.0,117020.0,1.33004329]
[1758271908820,0.72294,117030.0,117020.0,1.31614329]
[1758271910026,0.80798,117030.0,117020.0,1.31614329]
[1758271910827,0.03622,117030.0,117020.0,1.31614329]
[1758271911334,0.80798,117030.0,117020.0,1.31614329]
[1758271919032,0.80798,117030.0,117020.0,0.92561]
[1758271919233,0.80798,117030.0,117020.0,1.31614329]
[1758271920235,0.80794,117030.0,117020.0,1.31614329]
[1758271920633,0.80794,117030.0,117020.0,1.32898329]
[1758271922137,0.03622,117030.0,117020.0,1.32898329]
[1758271922437,0.80794,117030.0,117020.0,1.32898329]
[1758271928442,0.80794,117030.0,117020.0,1.41439619]
[1758271928830,0.80794,117030.0,117020.0,1.32898329]
[1758271929840,0.80794,117030.0,117020.0,0.94614329]
[1758271930341,0.81636314,117030.0,117020.0,0.94614329]
[1758271930538,1.45689643,117030.0,117020.0,0.55561]
[1758271930737,1.84742972,117030.0,117020.0,0.0021]
[1758271930939,2.22532003,117030.0,117020.0,0.0021]
[1758271931139,2.22532003,117030.0,117010.0,0.0001]
[1758271931338,0.42544329,117020.0,117010.0,0.0001]
[1758271931539,0.03491,117010.0,117000.0,0.45086221]
[1758271931739,0.03491,117010.0,117000.0,0.47076221]
[1758271931740,1.19712329,117010.0,117000.0,0.47076221]
[1758271932242,0.80659,117010.0,117000.0,0.47076221]
[1758271932434,0.80659,117010.0,117000.0,0.8741355]
[1758271932633,0.03491,117010.0,117000.0,0.8741355]
[1758271932836,0.80659,117010.0,117000.0,0.8741355]
[1758271933038,0.80659,117010.0,117000.0,0.8811355]
[1758271933438,0.80759,117010.0,117000.0,0.8861355]
[1758271934145,0.80759,117010.0,117000.0,0.48276221]
[1758271934845,1.19812329,117010.0,117000.0,0.48276221]
[1758271937847,1.19820283,117010.0,117000.0,0.87337504]
[1758271938046,1.19820283,117010.0,117000.0,0.48276221]
[1758271938247,1.19820283,117010.0,117000.0,0.87337504]
[1758271940055,1.19820283,117010.0,117000.0,0.48276221]
[1758271940349,1.19820283,117010.0,117000.0,0.87337504]
[1758271944345,0.80759,117010.0,117000.0,0.87337504]
[1758271944649,1.19820283,117010.0,117000.0,0.87337504]
[1758271945758,1.19820283,117010.0,117000.0,0.48276221]
[1758271945959,1.19820283,117010.0,117000.0,0.87337504]
[1758271947663,0.42652283,117010.0,117000.0,0.87337504]
[1758271947864,0.42652283,117010.0,117000.0,0.97261234]
[1758271948066,0.41295283,117010.0,117000.0,0.97261234]
[1758271948264,0.7941,117010.0,117000.0,0.97261234]
[1758271948464,1.18471283,117010.0,117000.0,0.97261234]
[1758271948666,0.7941,117010.0,117000.0,0.97261234]
[1758271949066,1.18471283,117010.0,117000.0,1.36322517]
[1758271949264,1.18471283,117010.0,117000.0,0.97261234]
[1758271950870,0.41295283,117010.0,117000.0,0.97261234]
[1758271951059,1.18471283,117010.0,117000.0,0.97261234]
[1758271953668,0.02234,117010.0,117000.0,0.97261234]
[1758271953871,0.02234,117010.0,117000.0,1.68322517]
[1758271954170,0.7941,117010.0,117000.0,1.68322517]
[1758271957174,0.7941,117010.0,117000.0,1.97322517]
[1758271959068,0.02234,117010.0,117000.0,1.68322517]
[1758271959268,0.7941,117010.0,117000.0,1.68322517]
[1758271959469,0.7941,117010.0,117000.0,1.96322517]
[1758271959769,0.7941,117010.0,117000.0,1.94322517]
[1758271960869,0.7941,117010.0,117000.0,1.68322517]
[1758271969077,0.7941,117010.0,117000.0,1.96322517]
[1758271969273,0.7941,117010.0,117000.0,1.68322517]
[1758271978886,0.7941,117010.0,117000.0,1.94322517]
[1758271979076,0.7941,117010.0,117000.0,1.68322517]
[1758271979877,0.7941,117010.0,117000.0,1.98322517]
[1758271988488,0.02234,117010.0,117000.0,1.98322517]
[1758271988782,0.7941,117010.0,117000.0,1.98322517]
[1758271994382,0.02234,117010.0,117000.0,1.98322517]
[1758271994582,0.7941,117010.0,117000.0,1.98322517]
[1758271994996,0.001,117010.0,117000.0,1.98322517]
[1758271995288,0.77276,117010.0,117000.0,1.98322517]
[1758271995987,0.001,117010.0,117000.0,1.98322517]
[1758271996193,0.77276,117010.0,117000.0,1.98322517]
[1758271997893,0.77276,117010.0,117000.0,1.98297701]
[1758272000196,0.77276,117010.0,117000.0,1.68297701]
[1758272000492,0.77276,117010.0,117000.0,2.00297701]
[1758272000697,0.77276,117010.0,117000.0,2.02000169]
[1758272005904,0.77276,117010.0,117000.0,1.70000169]
[1758272006206,0.77276,117010.0,117000.0,1.53408564]
[1758272006506,0.77276,117010.0,117000.0,1.22408564]
[1758272011007,0.79464,117010.0,117000.0,0.83359689]
[1758272011202,0.79464,117010.0,117000.0,1.22408564]
[1758272015105,0.02288,117010.0,117000.0,1.22408564]
[1758272015309,0.7946,117010.0,117000.0,1.22408564]
[1758272016109,0.02288,117010.0,117000.0,1.22408564]
[1758272016310,0.7946,117010.0,117000.0,1.22408564]
[1758272019810,0.7946,117010.0,117000.0,1.30951314]
[1758272025309,0.02288,117010.0,117000.0,1.30951314]
[1758272025614,0.7946,117010.0,117000.0,1.30951314]
[1758272028714,0.80777,117010.0,117000.0,1.22408564]
[1758272029319,0.7946,117010.0,117000.0,1.22408564]
[1758272029618,0.7946,117010.0,117000.0,0.83359689]
[1758272029819,0.7946,117010.0,117000.0,1.22408564]
[1758272036014,0.80765,117010.0,117000.0,1.22408564]
[1758272038226,0.80765,117010.0,117000.0,1.21027564]
[1758272040738,1.19813875,117010.0,117000.0,0.81978689]
[1758272040929,1.46827094,117010.0,117000.0,0.81978689]
[1758272042538,1.46827094,117010.0,117000.0,1.21027564]
[1758272043727,1.46827094,117010.0,117000.0,0.81978689]
[1758272045039,1.46827094,117010.0,117000.0,1.21027564]
[1758272046342,1.46827094,117010.0,117000.0,0.81978689]
[1758272050345,0.69655094,117010.0,117000.0,0.81978689]
[1758272050538,1.46823094,117010.0,117000.0,0.81978689]
[1758272051146,0.69655094,117010.0,117000.0,0.81978689]
[1758272051649,1.46823094,117010.0,117000.0,0.81978689]
[1758272052350,0.69655094,117010.0,117000.0,0.81978689]
[1758272052541,1.07774219,117010.0,117000.0,0.83291689]
[1758272052838,1.46823094,117010.0,117000.0,0.81978689]
[1758272053145,1.46823094,117010.0,117000.0,1.21027564]
[1758272056749,1.46823094,117010.0,117000.0,0.81978689]
[1758272059751,1.46833687,117010.0,117000.0,1.21038157]
[1758272060650,1.07774219,117010.0,117000.0,1.21038157]
[1758272061149,1.46829687,117010.0,117000.0,1.21038157]
[1758272066253,1.46829687,117010.0,117000.0,0.80276221]
[1758272066754,1.46829687,117010.0,117000.0,1.19335689]
[1758272077154,1.46829687,117010.0,117000.0,0.80276221]
[1758272077361,1.46829687,117010.0,117000.0,1.19335689]
[1758272077963,1.07770219,117010.0,117000.0,1.19335689]
[1758272078155,1.46829687,117010.0,117000.0,1.19335689]
[1758272079363,1.21829687,117010.0,117000.0,1.19335689]
[1758272079564,0.82770219,117010.0,117000.0,1.19335689]
[1758272079764,1.21829687,117010.0,117000.0,1.19335689]
[1758272080764,1.21829687,117010.0,117000.0,0.80276221]
[1758272081066,1.21829687,117010.0,117000.0,1.19335689]
[1758272082763,1.21829687,117010.0,117000.0,0.80276221]
[1758272083060,1.21829687,117010.0,117000.0,1.19335689]
[1758272084365,0.82770219,117010.0,117000.0,1.19335689]
[1758272084662,1.21829687,117010.0,117000.0,1.19335689]
[1758272085057,1.21829687,117010.0,117000.0,0.80276221]
[1758272085264,1.21829687,117010.0,117000.0,1.19335689]
[1758272085664,1.21829687,117010.0,117000.0,0.80276221]
[1758272088360,1.21825687,117010.0,117000.0,1.19335689]
[1758272089578,1.21825687,117010.0,117000.0,0.40427]
[1758272089775,2.21965155,117010.0,117000.0,0.012]
[1758272091773,2.2282877,117010.0,117000.0,0.012]
[1758272096578,1.44709834,117010.0,117000.0,0.012]
[1758272096877,2.2282877,117010.0,117000.0,0.012]
[1758272102078,1.9782877,117010.0,117000.0,0.012]
[1758272112684,1.2066877,117010.0,117000.0,0.012]
[1758272112879,1.9783677,117010.0,117000.0,0.012]
[1758272113282,1.2066877,117010.0,117000.0,0.012]
[1758272113482,1.9783677,117010.0,117000.0,0.012]
[1758272114992,1.2066877,117010.0,117000.0,0.012]
[1758272115192,1.9783677,117010.0,117000.0,0.012]
[1758272116496,2.61896238,117010.0,117000.0,0.0115706]
[1758272116993,2.2283677,117010.0,117000.0,0.0115706]
[1758272117194,2.2284077,117010.0,117000.0,0.0115706]
[1758272117796,1.4566877,117010.0,117000.0,0.0115706]
[1758272117991,2.2284077,117010.0,117000.0,0.0115706]
[1758272119198,1.4566877,117010.0,117000.0,0.0115706]
[1758272119398,2.2284077,117010.0,117000.0,0.0115706]
[1758272119999,2.22877514,117010.0,117000.0,0.0115706]
[1758272121000,1.86797514,117010.0,117000.0,0.0115706]
[1758272121200,2.58957514,117010.0,117000.0,0.0115706]
[1758272123404,1.81785514,117010.0,117000.0,0.0115706]
[1758272123902,2.58957514,117010.0,117000.0,0.0115706]
[1758272127203,2.58961514,117010.0,117000.0,0.0115706]
[1758272127708,1.81785514,117010.0,117000.0,0.0115706]
[1758272128302,2.58961514,117010.0,117000.0,0.0115706]
[1758272129110,1.81785514,117010.0,117000.0,0.0115706]
[1758272129314,2.58961514,117010.0,117000.0,0.0115706]
[1758272130812,1.81785514,117010.0,117000.0,0.0115706]
[1758272131008,2.19883674,117010.0,117000.0,0.0348006]
[1758272131517,2.19883674,117010.0,117000.0,0.0115706]
[1758272132718,2.58961514,117010.0,117000.0,0.0115706]
[1758272139024,1.81785514,117010.0,117000.0,0.0115706]
[1758272139224,2.58961514,117010.0,117000.0,0.0115706]
[1758272139526,2.33961514,117010.0,117000.0,0.0115706]
[1758272144333,4.14041514,117010.0,117000.0,0.0115706]
[1758272145233,3.74963674,117010.0,117000.0,0.0115706]
[1758272160838,3.35885834,117010.0,117000.0,0.0115706]
[1758272161043,3.74963674,117010.0,117000.0,0.0115706]
[1758272161850,3.77578622,117010.0,117000.0,0.0115706]
[1758272163048,2.61320847,117010.0,117000.0,0.0115706]
[1758272163350,2.61320847,117010.0,117000.0,0.0348006]
[1758272163351,3.74124124,117010.0,117000.0,0.0348006]
[1758272180065,3.38044124,117010.0,117000.0,0.0348006]
[1758272181867,3.77100946,117010.0,117000.0,0.0348006]
[1758272184173,3.77100946,117010.0,117000.0,0.0115706]
[1758272185173,3.77100946,117010.0,117000.0,0.0326806]
[1758272196496,2.98966284,117010.0,117000.0,0.0326806]
[1758272196686,3.77100946,117010.0,117000.0,0.0326806]
[1758272198594,3.77100946,117010.0,117000.0,0.0115706]
[1758272200898,2.99896946,117010.0,117000.0,0.0326806]
[1758272201103,3.77084946,117010.0,117000.0,0.0326806]
[1758272201904,3.79692769,117010.0,117000.0,0.0326806]
[1758272202096,3.79692769,117010.0,117000.0,0.0115706]
[1758272209409,3.43612769,117010.0,117000.0,0.0115706]
[1758272209706,3.79692769,117010.0,117000.0,0.0115706]
[1758272211906,3.77084946,117010.0,117000.0,0.0115706]
[1758272228121,4.13164946,117010.0,117000.0,0.0115706]
[1758272236728,4.13156946,117010.0,117000.0,0.0115706]
[1758272237517,3.35976946,117010.0,117000.0,0.0115706]
[1758272237827,4.13156946,117010.0,117000.0,0.0115706]
[1758272239131,3.35976946,117010.0,117000.0,0.0115706]
[1758272239330,4.13156946,117010.0,117000.0,0.0115706]
[1758272239830,3.35976946,117010.0,117000.0,0.0115706]
[1758272240033,4.13156946,117010.0,117000.0,0.0115706]
[1758272242330,3.77076946,117010.0,117000.0,0.0115706]
[1758272243734,3.7708962,117010.0,117000.0,0.0115706]
[1758272245735,3.38015952,117010.0,117000.0,0.0115706]
[1758272248032,3.7708962,117010.0,117000.0,0.0115706]
[1758272250644,3.38015952,117010.0,117000.0,0.0115706]
[1758272251935,3.40618717,117010.0,117000.0,0.0115706]
[1758272252336,3.79692385,117010.0,117000.0,0.0115706]
[1758272261940,3.7708962,117010.0,117000.0,0.0115706]
[1758272271554,2.9990962,117010.0,117000.0,0.0115706]
[1758272271762,3.7708562,117010.0,117000.0,0.0115706]
[1758272272058,3.38011952,117010.0,117000.0,0.0115706]
[1758272274849,3.7708562,117010.0,117000.0,0.0115706]
[1758272279274,2.9990962,117010.0,117000.0,0.0115706]
[1758272279566,3.7710162,117010.0,117000.0,0.0115706]
[1758272279962,2.9990962,117010.0,117000.0,0.0115706]
[1758272280364,3.7710162,117010.0,117000.0,0.0115706]
[1758272283173,3.77093395,117010.0,117000.0,0.0115706]
[1758272291875,3.79707258,117010.0,117000.0,0.0115706]
[1758272301896,3.77093395,117010.0,117000.0,0.0115706]
[1758272303795,3.77093755,117010.0,117000.0,0.0115706]
[1758272320309,2.99901755,117010.0,117000.0,0.0115706]
[1758272320501,3.77077755,117010.0,117000.0,0.0115706]
[1758272329512,3.77077755,117010.0,117000.0,0.0327006]
[1758272330412,3.77077755,117010.0,117000.0,0.0115706]
[1758272334415,3.77077755,117010.0,117000.0,0.0343406]
[1758272335523,2.99901755,117010.0,117000.0,0.0343406]
[1758272335818,3.77077755,117010.0,117000.0,0.0343406]
[1758272341927,3.79702383,117010.0,117000.0,0.0343406]
[1758272342222,3.79702383,117010.0,117000.0,0.0115706]
[1758272343216,3.79702383,117010.0,117000.0,0.0329406]
[1758272345727,3.79702383,117010.0,117000.0,0.0115706]
[1758272347429,3.79702383,117010.0,117000.0,0.0329406]
[1758272351833,3.79702383,117010.0,117000.0,0.0115706]
[1758272352033,3.77077755,117010.0,117000.0,0.0115706]
[1758272357635,2.99901755,117010.0,117000.0,0.0115706]
[1758272357835,3.77073755,117010.0,117000.0,0.0115706]
[1758272359636,2.99901755,117010.0,117000.0,0.0115706]
[1758272359838,3.77073755,117010.0,117000.0,0.0115706]
[1758272365746,3.37999105,117010.0,117000.0,0.0115706]
[1758272371849,2.60827105,117010.0,117000.0,0.0115706]
[1758272372043,3.37999105,117010.0,117000.0,0.0115706]
[1758272376553,2.60827105,117010.0,117000.0,0.0115706]
[1758272376749,3.37995105,117010.0,117000.0,0.0115706]
[1758272376957,2.60827105,117010.0,117000.0,0.0115706]
[1758272377155,3.37995105,117010.0,117000.0,0.0115706]
[1758272379058,2.60827105,117010.0,117000.0,0.0115706]
[1758272379260,3.37995105,117010.0,117000.0,0.0115706]
[1758272381960,3.40627236,117010.0,117000.0,0.0115706]
[1758272382959,2.63459236,117010.0,117000.0,0.0115706]
[1758272383161,3.40627236,117010.0,117000.0,0.0115706]
[1758272385467,3.04547236,117010.0,117000.0,0.0115706]
[1758272386061,3.40627236,117010.0,117000.0,0.0115706]
[1758272390165,3.38626177,117010.0,117000.0,0.0115706]
[1758272391865,3.35994046,117010.0,117000.0,0.0115706]
[1758272392865,3.35994046,117010.0,117000.0,0.0328606]
[1758272393059,3.35994046,117010.0,117000.0,0.0115706]
[1758272394953,2.99914046,117010.0,117000.0,0.0115706]
[1758272395159,3.35994046,117010.0,117000.0,0.0115706]
[1758272404064,2.19753,117010.0,117000.0,0.0115706]
[1758272404270,1.83673,117010.0,117000.0,0.0475406]
[1758272404466,1.82368,117010.0,117000.0,1.63424823]
[1758272404766,1.8018,117010.0,117000.0,1.56449866]
[1758272404967,2.57344,117010.0,117000.0,1.56449866]
[1758272405368,2.57344,117010.0,117000.0,1.06907106]
[1758272409171,2.57344,117010.0,117000.0,1.13590941]
[1758272409873,2.59563,117010.0,117000.0,0.74517895]
[1758272410073,2.59563,117010.0,117000.0,1.13590941]
[1758272410771,2.98636046,117010.0,117000.0,1.13590941]
[1758272412666,2.59563,117010.0,117000.0,1.13590941]
[1758272415576,2.98636046,117010.0,117000.0,1.13590941]
[1758272423983,2.98636046,117010.0,117000.0,1.15332747]
[1758272427786,2.9862058,117010.0,117000.0,1.15317281]
[1758272432283,2.9992058,117010.0,117000.0,1.15317281]
[1758272432488,2.60863,117010.0,117000.0,1.13951281]
[1758272432689,2.9992058,117010.0,117000.0,1.13951281]
[1758272436791,2.9990858,117010.0,117000.0,1.13951281]
[1758272438391,2.9990858,117010.0,117000.0,1.15221281]
[1758272439297,2.9990858,117010.0,117000.0,0.90221281]
[1758272439885,1.83699,117010.0,117000.0,0.90221281]
[1758272440086,2.9990858,117010.0,117000.0,0.90221281]
[1758272444501,2.60851,117010.0,117000.0,0.90221281]
[1758272444795,2.9990858,117010.0,117000.0,0.90221281]
[1758272446598,2.60851,117010.0,117000.0,0.90221281]
[1758272446792,2.9990858,117010.0,117000.0,0.90221281]
[1758272446998,2.2275658,117010.0,117000.0,0.90221281]
[1758272447190,2.9991258,117010.0,117000.0,0.90221281]
[1758272454402,2.9991258,117010.0,117000.0,0.88951281]
[1758272457606,2.60855,117010.0,117000.0,0.88951281]
[1758272457808,2.9991258,117010.0,117000.0,0.90217281]
[1758272458808,2.9991258,117010.0,117000.0,0.51159701]
[1758272459007,1.1983258,117010.0,117000.0,0.90217281]
[1758272459708,0.80775,117010.0,117000.0,0.90217281]
[1758272460007,1.1983258,117010.0,117000.0,0.90217281]
[1758272462612,0.80775,117010.0,117000.0,0.90217281]
[1758272462805,1.1983258,117010.0,117000.0,0.90217281]
[1758272465614,0.80775,117010.0,117000.0,0.90217281]
[1758272465820,1.1983258,117010.0,117000.0,0.90217281]
[1758272471825,0.80775,117010.0,117000.0,0.90217281]
[1758272472026,1.1983258,117010.0,117000.0,0.90217281]
[1758272476024,1.1983258,117010.0,117000.0,0.54137281]
[1758272476228,1.1983258,117010.0,117000.0,0.90217281]
[1758272480031,1.1983258,117010.0,117000.0,0.54137281]
[1758272480230,1.1983258,117010.0,117000.0,0.90217281]
[1758272480728,1.1983258,117010.0,117000.0,0.51159701]
[1758272480925,1.1983258,117010.0,117000.0,0.49893701]
[1758272481522,1.1983258,117010.0,117000.0,0.13813701]
[1758272482329,1.1983258,117010.0,117000.0,0.52871281]
[1758272486230,1.1983258,117010.0,117000.0,0.49893701]
[1758272486426,1.1983258,117010.0,117000.0,0.88951281]
[1758272488936,1.1983258,117010.0,117000.0,0.49893701]
[1758272489138,1.1983258,117010.0,117000.0,0.88951281]
[1758272489842,1.19837625,117010.0,117000.0,0.49893701]
[1758272491145,1.19837625,117010.0,117000.0,0.13813701]
[1758272491341,1.80917625,117010.0,117000.0,0.07129866]
[1758272491542,1.80917625,117010.0,117000.0,0.02898866]
[1758272493639,1.03761625,117010.0,117000.0,0.02898866]
[1758272493845,1.80937625,117010.0,117000.0,0.02898866]
[1758272499254,1.55937625,117010.0,117000.0,0.02898866]
[1758272502257,1.55925625,117010.0,117000.0,0.02898866]
[1758272504454,1.9498825,117010.0,117000.0,0.02898866]
[1758272504655,2.1998825,117010.0,117000.0,0.0115706]
[1758272506856,2.2000425,117010.0,117000.0,0.0115706]
[1758272511162,1.4282425,117010.0,117000.0,0.0115706]
[1758272511658,2.2000025,117010.0,117000.0,0.0115706]
[1758272512855,1.4282425,117010.0,117000.0,0.0115706]
[1758272513367,2.1999625,117010.0,117000.0,0.0115706]
[1758272514966,1.4282425,117010.0,117000.0,0.0115706]
[1758272515169,2.1999625,117010.0,117000.0,0.0115706]
[1758272516264,1.4282425,117010.0,117000.0,0.0115706]
[1758272516466,2.1999625,117010.0,117000.0,0.0115706]
[1758272516671,1.4282425,117010.0,117000.0,0.005]
[1758272516871,0.03458,117000.0,116990.0,0.0002]
[1758272517171,0.03458,116990.0,116980.0,0.0002]
[1758272517370,0.03458,116980.0,116970.0,1.5002]
[1758272517570,0.42520625,116980.0,116970.0,2.02]
[1758272520272,0.42620625,116980.0,116970.0,2.024]
[1758272520771,0.42620625,116980.0,116970.0,2.028]
[1758272525176,0.42620625,116980.0,116970.0,1.678]
[1758272530868,1.19784625,116980.0,116970.0,1.678]
[1758272536883,0.80722,116980.0,116970.0,1.678]
[1758272537078,1.19784625,116980.0,116970.0,1.678]
[1758272538790,0.80722,116980.0,116970.0,2.472]
[1758272539086,1.19784625,116980.0,116970.0,2.142]
[1758272541084,0.42620625,116980.0,116970.0,0.66451]
[1758272541289,1.19804625,116980.0,116970.0,0.66451]
[1758272546691,0.80742,116980.0,116970.0,0.66451]
[1758272547098,1.19804625,116980.0,116970.0,0.66451]
[1758272549906,1.58905562,116980.0,116970.0,0.66451]
[1758272550206,1.58905562,116980.0,116970.0,1.02531]
[1758272556712,1.58905562,116980.0,116970.0,0.52131]
[1758272557314,1.58905562,116980.0,116970.0,0.16051]
[1758272559621,1.94985562,116980.0,116970.0,0.16051]
[1758272559811,1.94985562,116980.0,116970.0,0.03051]
[1758272561622,1.16822,116980.0,116970.0,0.03051]
[1758272561826,1.94985562,116980.0,116970.0,0.03051]
[1758272562125,1.58905562,116980.0,116970.0,0.03051]
[1758272562322,1.95041562,116980.0,116970.0,0.03051]
[1758272564226,1.95061562,116980.0,116970.0,0.03051]
[1758272564523,2.20061562,116980.0,116970.0,0.03051]
[1758272566529,1.42801562,116980.0,116970.0,0.03051]
[1758272566730,2.20069562,116980.0,116970.0,0.03051]